fUSD/lending_fUSD_20241230
["ID","MTS","AMOUNT","RATE_DAILY","PERIOD"]
[347168035,1735540249862,-254.25997644,0.00015501,2]
[347168036,1735540249872,-150.0,0.00015508,2]
[347168037,1735540249881,-150.0,0.00015513,2]
[347168038,1735540249891,-150.0,0.00015515,2]
[347168039,1735540249899,-254.25997644,0.00015518,2]
[347168040,1735540249908,-150.0,0.0001552,2]
[347168041,1735540249917,-150.0,0.00015525,2]
[347168042,1735540249926,-1000.0,0.00015528,2]
[347168043,1735540249935,-207.0,0.0001553,2]
[347168044,1735540249944,-150.0,0.00015534,2]
[347168045,1735540249953,-254.25997644,0.00015534,2]
[347168046,1735540249962,-150.0,0.00015534,2]
[347168047,1735540249971,-500.0,0.00015535,2]
[347168048,1735540249980,-500.0,0.00015535,2]
[347168049,1735540249989,-533.236592,0.00015535,2]
[347168050,1735540250000,-434.06883001,0.00015535,2]
[347168051,1735540250009,-500.0,0.00015535,2]
[347168052,1735540250018,-585.09790294,0.00015535,2]
[347168053,1735540250027,-500.0,0.00015535,2]
[347168054,1735540250036,-500.0,0.00015535,2]
[347168055,1735540250045,-500.0,0.00015535,2]
[347168056,1735540250054,-518.66,0.00015535,2]
[347168057,1735540250063,-500.0,0.00015535,2]
[347168058,1735540250073,-500.0,0.00015535,2]
[347168059,1735540250081,-500.0,0.00015535,2]
[347168060,1735540250090,-500.0,0.00015535,2]
[347168061,1735540250099,-500.0,0.00015535,2]
[347168062,1735540250108,-500.0,0.00015535,2]
[347168063,1735540250117,-8294.09,0.00015535,2]
[347168064,1735540250126,-500.0,0.00015535,2]
[347168065,1735540250135,-1115.87,0.00015535,2]
[347168066,1735540250144,-1631.27,0.00015535,2]
[347168067,1735540250154,-718.01,0.00015535,2]
[347168068,1735540250162,-746.82,0.00015535,2]
[347168069,1735540250171,-1700.04,0.00015535,2]
[347168070,1735540250181,-3316.1,0.00015535,2]
[347168071,1735540250190,-2309.314928,0.00015536,2]
[347168072,1735540250199,-1892.684954,0.00015536,2]
[347168073,1735540250208,-1890.23,0.00015536,2]
[347168074,1735540250217,-1329.52,0.00015536,2]
[347168075,1735540250226,-500.0,0.00015536,2]
[347168076,1735540250235,-500.0,0.00015536,2]
[347168077,1735540250245,-500.0,0.00015536,2]
[347168078,1735540250256,-1541.18,0.00015536,2]
[347168079,1735540250265,-1758.7,0.00015536,2]
[347168080,1735540250274,-500.0,0.00015536,2]
[347168081,1735540250283,-770.87,0.00015536,2]
[347168082,1735540250292,-1237.1,0.00015536,2]
[347168083,1735540250301,-3260.46,0.00015536,2]
[347168084,1735540250311,-500.0,0.00015536,2]
[347168085,1735540250320,-1898.39,0.00015536,2]
[347168086,1735540250329,-8076.67,0.00015536,2]
[347168087,1735540250338,-5355.53,0.00015536,2]
[347168088,1735540250348,-500.0,0.00015536,2]
[347168089,1735540250357,-772.89,0.00015536,2]
[347168090,1735540250366,-500.0,0.00015536,2]
[347168091,1735540250375,-500.0,0.00015536,2]
[347168092,1735540250385,-2333.86,0.00015536,2]
[347168093,1735540250394,-500.0,0.00015536,2]
[347168094,1735540250404,-500.0,0.00015536,2]
[347168095,1735540250414,-12730.05,0.00015536,2]
[347168096,1735540250423,-500.0,0.00015536,2]
[347168097,1735540250432,-500.0,0.00015536,2]
[347168098,1735540250442,-500.0,0.00015536,2]
[347168099,1735540250451,-500.0,0.00015536,2]
[347168100,1735540250461,-422.86,0.00015536,2]
[347168101,1735540250470,-500.0,0.00015536,2]
[347168102,1735540250479,-614.67,0.00015536,2]
[347168103,1735540250489,-183.54,0.00015536,2]
[347168104,1735540250498,-538.46,0.00015536,2]
[347168105,1735540250507,-907.32,0.00015536,2]
[347168106,1735540250516,-500.0,0.00015536,2]
[347168107,1735540250525,-1407.57,0.00015536,2]
[347168108,1735540250535,-500.0,0.00015536,2]
[347168109,1735540250544,-2114.27,0.00015536,2]
[347168110,1735540250553,-500.0,0.00015536,2]
[347168111,1735540250562,-500.0,0.00015536,2]
[347168112,1735540250571,-1732.3,0.00015536,2]
[347168113,1735540250580,-500.0,0.00015536,2]
[347168114,1735540250589,-3453.94,0.00015536,2]
[347168115,1735540250598,-500.0,0.00015536,2]
[347168116,1735540250608,-151.0,0.00015537,2]
[347168117,1735540250617,-151.0,0.00015537,2]
[347168118,1735540250626,-500.0,0.00015537,2]
[347168119,1735540250635,-629.89618046,0.00015537,2]
[347168120,1735540250644,-566.538786,0.00015537,2]
[347168121,1735540250653,-566.538786,0.00015537,2]
[347168122,1735540250662,-566.538786,0.00015537,2]
[347168123,1735540250671,-566.53879,0.00015537,2]
[347168124,1735540250681,-223.792989,0.00015537,2]
[347168125,1735540250690,-223.792989,0.00015537,2]
[347168126,1735540250699,-223.792989,0.00015537,2]
[347168127,1735540250708,-223.792989,0.00015537,2]
[347168128,1735540250717,-500.0,0.00015537,2]
[347168129,1735540250726,-151.0,0.00015537,2]
[347168130,1735540250735,-538.65,0.00015537,2]
[347168131,1735540250744,-330.12,0.00015537,2]
[347168132,1735540250754,-500.0,0.00015537,2]
[347168133,1735540250763,-500.0,0.00015537,2]
[347168134,1735540250773,-500.0,0.00015537,2]
[347168135,1735540250782,-500.0,0.00015537,2]
[347168136,1735540250792,-500.0,0.00015537,2]
[347168137,1735540250804,-150.0,0.00015548,2]
[347168138,1735540250813,-362.0,0.0001555,2]
[347168139,1735540250822,-209.0,0.0001555,2]
[347168140,1735540250831,-254.25997644,0.00015551,2]
[347168141,1735540250841,-150.0,0.00015551,2]
[347168142,1735540250850,-150.0,0.00015551,2]
[347168143,1735540250859,-2595.76538402,0.00015551,2]
[347168144,1735540250868,-150.0,0.00015553,2]
[347168145,1735540250878,-150.0,0.00015555,2]
[347168146,1735540250887,-150.0,0.00015567,2]
[347168147,1735540250896,-254.25997644,0.00015567,2]
[347168148,1735540250906,-150.0,0.00015568,2]
[347168149,1735540250915,-150.0,0.00015577,2]
[347168150,1735540250925,-150.0,0.00015578,2]
[347168151,1735540250934,-254.25997644,0.00015584,2]
[347168152,1735540250944,-150.0,0.00015586,2]
[347168153,1735540250953,-150.0,0.00015587,2]
[347168154,1735540250963,-150.0,0.00015598,2]
[347168155,1735540250972,-200.0,0.00015598,2]
[347168156,1735540250981,-200.0,0.00015598,2]
[347168157,1735540250991,-1000.0,0.000156,2]
[347168158,1735540251002,-254.25997644,0.000156,2]
[347168159,1735540251011,-150.0,0.00015614,2]
[347168160,1735540251021,-1000.0,0.00015616,2]
[347168161,1735540251030,-254.25997644,0.00015616,2]
[347168162,1735540251039,-3642.0,0.00015616,2]
[347168163,1735540251048,-150.0,0.00015619,2]
[347168164,1735540251057,-150.0,0.00015623,2]
[347168165,1735540251067,-254.25997644,0.00015633,2]
[347168166,1735540251076,-150.0,0.0001564,2]
[347168167,1735540251086,-150.0,0.00015641,2]
[347168168,1735540251095,-1500.0,0.00015642,2]
[347168169,1735540251104,-500.0,0.00015643,2]
[347168170,1735540251114,-201.0,0.00015648,2]
[347168171,1735540251124,-254.25997644,0.00015649,2]
[347168172,1735540251133,-150.0,0.00015659,2]
[347168173,1735540251142,-150.0,0.00015661,2]
[347168174,1735540251151,-254.25997644,0.00015666,2]
[347168175,1735540251160,-500.0,0.00015674,2]
[347168176,1735540251170,-254.25997644,0.00015682,2]
[347168177,1735540251179,-150.0,0.00015682,2]
[347168178,1735540251188,-150.0,0.00015695,2]
[347168179,1735540251197,-254.25997644,0.00015699,2]
[347168180,1735540251206,-150.0,0.00015703,2]
[347168181,1735540251215,-150.0,0.00015711,2]
[347168182,1735540251225,-150.0,0.00015714,2]
[347168183,1735540251234,-254.25997644,0.00015715,2]
[347168184,1735540251243,-2595.76538402,0.00015717,2]
[347168185,1735540251254,-150.0,0.00015724,2]
[347168186,1735540251263,-254.25997644,0.00015732,2]
[347168187,1735540251273,-150.0,0.00015732,2]
[347168188,1735540251282,-150.0,0.00015732,2]
[347168189,1735540251292,-150.0,0.00015732,2]
[347168190,1735540251301,-150.0,0.00015733,2]
[347168191,1735540251310,-150.0,0.00015742,2]
[347168192,1735540251319,-150.0,0.00015743,2]
[347168193,1735540251329,-150.0,0.00015744,2]
[347168194,1735540251338,-150.0,0.00015746,2]
[347168195,1735540251348,-254.25997644,0.00015748,2]
[347168196,1735540251357,-150.0,0.00015758,2]
[347168197,1735540251366,-254.25997644,0.00015764,2]
[347168198,1735540251375,-150.0,0.00015767,2]
[347168199,1735540251385,-150.0,0.00015768,2]
[347168200,1735540251394,-254.25997644,0.00015781,2]
[347168201,1735540251404,-150.0,0.00015785,2]
[347168202,1735540251413,-150.0,0.00015788,2]
[347168203,1735540251422,-254.25997644,0.00015797,2]
[347168204,1735540251431,-150.0,0.00015799,2]
[347168205,1735540251441,-150.0,0.00015804,2]
[347168206,1735540251451,-150.0,0.00015804,2]
[347168207,1735540251461,-500.0,0.00015809,2]
[347168208,1735540251470,-500.0,0.00015809,2]
[347168209,1735540251480,-500.0,0.00015809,2]
[347168210,1735540251489,-500.0,0.00015809,2]
[347168211,1735540251498,-8294.09,0.00015809,2]
[347168212,1735540251508,-500.0,0.00015809,2]
[347168213,1735540251518,-1115.87,0.00015809,2]
[347168214,1735540251527,-1631.27,0.00015809,2]
[347168215,1735540251537,-718.01,0.00015809,2]
[347168216,1735540251546,-746.82,0.00015809,2]
[347168217,1735540251555,-1700.04,0.00015809,2]
[347168218,1735540251565,-3316.1,0.00015809,2]
[347168219,1735540251574,-150.0,0.00015809,2]
[347168220,1735540251583,-208.010723,0.0001581,2]
[347168221,1735540251593,-229.081457,0.0001581,2]
[347168222,1735540251602,-1890.23,0.0001581,2]
[347168223,1735540251612,-1329.52,0.0001581,2]
[347168224,1735540251622,-252.8,0.0001581,2]
[347168225,1735540251632,-1541.18,0.0001581,2]
[347168226,1735540251642,-1758.7,0.0001581,2]
[347168227,1735540251652,-500.0,0.0001581,2]
[347168228,1735540251661,-770.87,0.0001581,2]
[347168229,1735540251671,-1237.1,0.0001581,2]
[347168230,1735540251680,-3260.46,0.0001581,2]
[347168231,1735540251690,-1898.39,0.0001581,2]
[347168232,1735540251700,-8076.67,0.0001581,2]
[347168233,1735540251709,-5355.53,0.0001581,2]
[347168234,1735540251719,-557.34,0.0001581,2]
[347168235,1735540251729,-772.89,0.0001581,2]
[347168236,1735540251738,-518.38,0.0001581,2]
[347168237,1735540251748,-2333.86,0.0001581,2]
[347168238,1735540251758,-500.0,0.0001581,2]
[347168239,1735540251767,-12730.05,0.0001581,2]
[347168240,1735540251777,-500.0,0.0001581,2]
[347168241,1735540251787,-500.0,0.0001581,2]
[347168242,1735540251800,-500.0,0.0001581,2]
[347168243,1735540251810,-500.0,0.0001581,2]
[347168244,1735540251819,-483.04426517,0.0001581,2]
[347168245,1735540251829,-538.46,0.0001581,2]
[347168246,1735540251839,-907.32,0.0001581,2]
[347168247,1735540251849,-500.0,0.0001581,2]
[347168248,1735540251858,-1407.57,0.0001581,2]
[347168249,1735540251867,-601.36789198,0.0001581,2]
[347168250,1735540251877,-2114.27,0.0001581,2]
[347168251,1735540251887,-500.0,0.0001581,2]
[347168252,1735540251895,-500.0,0.0001581,2]
[347168253,1735540251905,-1732.3,0.0001581,2]
[347168254,1735540251914,-500.0,0.0001581,2]
[347168255,1735540251923,-3453.94,0.0001581,2]
[347168256,1735540251933,-500.0,0.0001581,2]
[347168257,1735540251943,-500.0,0.00015811,2]
[347168258,1735540251952,-500.0,0.00015811,2]
[347168259,1735540251962,-538.65,0.00015811,2]
[347168260,1735540251971,-500.0,0.00015811,2]
[347168261,1735540251980,-500.0,0.00015811,2]
[347168262,1735540251990,-500.0,0.00015811,2]
[347168263,1735540251999,-500.0,0.00015811,2]
[347168264,1735540252009,-500.0,0.00015811,2]
[347168265,1735540252018,-1500.0,0.00015812,2]
[347168266,1735540252028,-254.25997644,0.00015814,2]
[347168267,1735540252037,-150.0,0.00015818,2]
[347168268,1735540252046,-150.0,0.00015822,2]
[347168269,1735540252056,-254.25997644,0.0001583,2]
[347168270,1735540252065,-150.0,0.0001583,2]
[347168271,1735540252075,-150.0,0.0001584,2]
[347168272,1735540252084,-254.25997644,0.00015847,2]
[347168273,1735540252094,-150.0,0.00015851,2]
[347168274,1735540252103,-1500.0,0.00015859,2]
[347168275,1735540252113,-254.25997644,0.00015863,2]
[347168276,1735540252123,-150.0,0.00015864,2]
[347168277,1735540252132,-1500.0,0.00015868,2]
[347168278,1735540252141,-150.0,0.00015872,2]
[347168279,1735540252151,-150.0,0.00015876,2]
[347168280,1735540252160,-254.25997644,0.00015879,2]
[347168281,1735540252169,-2595.76538402,0.00015883,2]
[347168282,1735540252178,-150.0,0.00015894,2]
[347168283,1735540252187,-254.25997644,0.00015896,2]
[347168284,1735540252196,-7328.0,0.000159,2]
[347168285,1735540252206,-150.0,0.000159,2]
[347168286,1735540252215,-254.25997644,0.00015912,2]
[347168287,1735540252224,-150.0,0.00015912,2]
[347168288,1735540252234,-150.0,0.00015912,2]
[347168289,1735540252243,-150.0,0.00015914,2]
[347168290,1735540252253,-150.0,0.00015915,2]
[347168291,1735540252262,-207.0,0.0001592,2]
[347168292,1735540252271,-150.0,0.00015924,2]
[347168293,1735540252281,-254.25997644,0.00015929,2]
[347168294,1735540252290,-362.0,0.0001593,2]
[347168295,1735540252299,-207.0,0.0001593,2]
[347168296,1735540252309,-209.0,0.0001593,2]
[347168297,1735540252319,-150.0,0.00015931,2]
[347168298,1735540252328,-150.0,0.00015936,2]
[347168299,1735540252337,-150.0,0.00015936,2]
[347168300,1735540252347,-254.25997644,0.00015945,2]
[347168301,1735540252356,-500.0,0.00015948,2]
[347168302,1735540252366,-150.0,0.00015948,2]
[347168303,1735540252375,-150.0,0.00015957,2]
[347168304,1735540252384,-254.25997644,0.00015962,2]
[347168305,1735540252393,-150.0,0.00015975,2]
[347168306,1735540252402,-254.25997644,0.00015978,2]
[347168307,1735540252412,-150.0,0.00015978,2]
[347168308,1735540252422,-150.0,0.00015979,2]
[347168309,1735540252431,-9129.65126407,0.0001598,2]
[347168310,1735540252440,-600.0,0.00015983,2]
[347168311,1735540252450,-150.0,0.00015985,2]
[347168312,1735540252459,-600.0,0.00015986,2]
[347168313,1735540252469,-150.0,0.00015986,2]
[347168314,1735540252479,-700.0,0.00015987,2]
[347168315,1735540252488,-248.39,0.00015994,2]
[347168316,1735540252497,-254.25997644,0.00015995,2]
[347168317,1735540252506,-8418.59495594,0.00015998,2]
[347168318,1735540252658,-150.0,0.00015999,2]
[347168319,1735540252668,-5000.0,0.00016,2]
[347168320,1735540252678,-1000.0,0.00016,2]
[347168321,1735540252687,-1000.0,0.00016,2]
[347168322,1735540252696,-1000.0,0.00016,2]
[347168323,1735540252706,-550.0,0.00016,2]
[347168324,1735540252715,-150.0,0.00016,2]
[347168325,1735540252725,-9779.22297863,0.00016,2]
[347168326,1735540252735,-150.0,0.00016003,2]
[347168327,1735540252744,-250.30866661,0.00016004,2]
[347168328,1735540252755,-600.0,0.00016004,2]
[347168329,1735540252764,-600.0,0.00016004,2]
[347168330,1735540252773,-600.0,0.00016004,2]
[347168331,1735540252783,-1872.64937,0.0001601,2]
[347168332,1735540252792,-254.25997644,0.00016011,2]
[347168333,1735540252803,-150.0,0.00016017,2]
[347168334,1735540252813,-150.0,0.0001602,2]
[347168335,1735540252822,-150.0,0.00016021,2]
[347168336,1735540252831,-254.25997644,0.00016027,2]
[347168337,1735540252841,-154.22335431,0.00016033,2]
[347168338,1735540252850,-150.0,0.00016039,2]
[347168339,1735540252859,-150.0,0.00016041,2]
[347168340,1735540252868,-150.0,0.00016043,2]
[347168341,1735540252877,-254.25997644,0.00016044,2]
[347168342,1735540252887,-150.0,0.00016045,2]
[347168343,1735540252897,-150.0,0.00016046,2]
[347168344,1735540252906,-2595.76538402,0.00016048,2]
[347168345,1735540252916,-150.0,0.00016053,2]
[347168346,1735540252926,-150.0,0.00016057,2]
[347168347,1735540252936,-254.25997644,0.0001606,2]
[347168348,1735540252946,-150.0,0.00016061,2]
[347168349,1735540252955,-150.0,0.00016063,2]
[347168350,1735540252965,-150.0,0.00016069,2]
[347168351,1735540252974,-254.25997644,0.00016077,2]
[347168352,1735540252983,-500.0,0.00016083,2]
[347168353,1735540252992,-585.8,0.00016083,2]
[347168354,1735540253003,-500.0,0.00016083,2]
[347168355,1735540253013,-500.0,0.00016083,2]
[347168356,1735540253023,-8294.09,0.00016083,2]
[347168357,1735540253032,-500.0,0.00016083,2]
[347168358,1735540253042,-1115.87,0.00016083,2]
[347168359,1735540253051,-1631.27,0.00016083,2]
[347168360,1735540253060,-718.01,0.00016083,2]
[347168361,1735540253070,-746.82,0.00016083,2]
[347168362,1735540253080,-1700.04,0.00016083,2]
[347168363,1735540253090,-3316.1,0.00016083,2]
[347168364,1735540253099,-150.0,0.00016084,2]
[347168365,1735540253108,-1890.23,0.00016084,2]
[347168366,1735540253118,-1329.52,0.00016084,2]
[347168367,1735540253128,-1541.18,0.00016084,2]
[347168368,1735540253137,-1758.7,0.00016084,2]
[347168369,1735540253146,-500.0,0.00016084,2]
[347168370,1735540253155,-770.87,0.00016084,2]
[347168371,1735540253165,-1237.1,0.00016084,2]
[347168372,1735540253175,-3260.46,0.00016084,2]
[347168373,1735540253184,-1898.39,0.00016084,2]
[347168374,1735540253193,-8076.67,0.00016084,2]
[347168375,1735540253203,-5355.53,0.00016084,2]
[347168376,1735540253212,-772.89,0.00016084,2]
[347168377,1735540253222,-2333.86,0.00016084,2]
[347168378,1735540253231,-500.0,0.00016084,2]
[347168379,1735540253239,-12730.05,0.00016084,2]
[347168380,1735540253250,-313.25,0.00016084,2]
[347168381,1735540253259,-500.0,0.00016084,2]
[347168382,1735540253268,-500.0,0.00016084,2]
[347168383,1735540253277,-500.0,0.00016084,2]
[347168384,1735540253286,-538.46,0.00016084,2]
[347168385,1735540253295,-907.32,0.00016084,2]
[347168386,1735540253305,-588.26823359,0.00016084,2]
[347168387,1735540253314,-1407.57,0.00016084,2]
[347168388,1735540253324,-2114.27,0.00016084,2]
[347168389,1735540253334,-500.0,0.00016084,2]
[347168390,1735540253343,-500.0,0.00016084,2]
[347168391,1735540253353,-1732.3,0.00016084,2]
[347168392,1735540253362,-189.96422988,0.00016084,2]
[347168393,1735540253372,-3453.94,0.00016084,2]
[347168394,1735540253381,-525.43179606,0.00016084,2]
[347168395,1735540253391,-500.0,0.00016085,2]
[347168396,1735540253400,-500.0,0.00016085,2]
[347168397,1735540253410,-538.65,0.00016085,2]
[347168398,1735540253419,-493.3250305,0.00016085,2]
[347168399,1735540253429,-399.39988169,0.00016085,2]
[347168400,1735540253438,-500.0,0.00016085,2]
[347168401,1735540253447,-500.0,0.00016085,2]
[347168402,1735540253457,-500.0,0.00016085,2]
[347168403,1735540253467,-254.25997644,0.00016093,2]
[347168404,1735540253477,-150.0,0.00016093,2]
[347168405,1735540253486,-150.0,0.00016093,2]
[347168406,1735540253497,-150.0,0.000161,2]
[347168407,1735540253508,-1000.0,0.000161,2]
[347168408,1735540253518,-150.0,0.00016105,2]
[347168409,1735540253528,-500.0,0.00016109,2]
[347168410,1735540253538,-500.0,0.00016109,2]
[347168411,1735540253548,-500.0,0.00016109,2]
[347168412,1735540253557,-500.0,0.00016109,2]
[347168413,1735540253567,-500.0,0.00016109,2]
[347168414,1735540253577,-500.0,0.00016109,2]
[347168415,1735540253587,-500.0,0.00016109,2]
[347168416,1735540253597,-500.0,0.00016109,2]
[347168417,1735540253606,-500.0,0.00016109,2]
[347168418,1735540253616,-500.0,0.00016109,2]
[347168419,1735540253626,-500.0,0.00016109,2]
[347168420,1735540253636,-500.0,0.00016109,2]
[347168421,1735540253645,-500.0,0.00016109,2]
[347168422,1735540253655,-500.0,0.00016109,2]
[347168423,1735540253664,-500.0,0.00016109,2]
[347168424,1735540253674,-500.0,0.00016109,2]
[347168425,1735540253683,-500.0,0.00016109,2]
[347168426,1735540253693,-500.0,0.00016109,2]
[347168427,1735540253702,-500.0,0.00016109,2]
[347168428,1735540253711,-500.0,0.00016109,2]
[347168429,1735540253720,-254.25997644,0.0001611,2]
[347168430,1735540253730,-150.0,0.00016111,2]
[347168431,1735540253739,-150.0,0.00016114,2]
[347168432,1735540253749,-150.0,0.00016123,2]
[347168433,1735540253758,-254.25997644,0.00016126,2]
[347168434,1735540253767,-150.0,0.00016126,2]
[347168435,1735540253777,-204.40210472,0.00016127,2]
[347168436,1735540253787,-150.0,0.00016129,2]
[347168437,1735540253799,-1500.0,0.00016133,2]
[347168438,1735540253808,-254.25997644,0.00016142,2]
[347168439,1735540253818,-150.0,0.00016147,2]
[347168440,1735540253827,-150.0,0.00016147,2]
[347168441,1735540253836,-150.0,0.00016156,2]
[347168442,1735540253847,-600.0,0.00016158,2]
[347168443,1735540253856,-254.25997644,0.00016159,2]
[347168444,1735540253866,-1900.0,0.0001616,2]
[347168445,1735540253876,-3772.0,0.0001616,2]
[347168446,1735540253886,-1256.0,0.0001616,2]
[347168447,1735540253895,-920.0,0.0001616,2]
[347168448,1735540253905,-819.0,0.0001616,2]
[347168449,1735540253915,-537.205,0.0001616,2]
[347168450,1735540253925,-3694.08,0.0001616,2]
[347168451,1735540253934,-1266.0,0.0001616,2]
[347168452,1735540253944,-2012.0,0.0001616,2]
[347168453,1735540253954,-636.0,0.0001616,2]
[347168454,1735540253963,-150.0,0.0001616,2]
[347168455,1735540253972,-3891.0,0.0001616,2]
[347168456,1735540253982,-150.0,0.00016165,2]
[347168457,1735540253992,-150.0,0.00016168,2]
[347168458,1735540254001,-254.25997644,0.00016175,2]
[347168459,1735540254011,-150.0,0.00016177,2]
[347168460,1735540254022,-150.0,0.00016184,2]
[347168461,1735540254031,-150.0,0.00016189,2]
[347168462,1735540254040,-254.25997644,0.00016192,2]
[347168463,1735540254050,-150.0,0.00016198,2]
[347168464,1735540254060,-150.0,0.00016199,2]
[347168465,1735540254070,-200.0,0.000162,7]
[347168466,1735540254080,-200.0,0.000162,4]
[347168467,1735540254089,-200.0,0.000162,3]
[347168468,1735540254099,-150.0,0.00016202,2]
[347168469,1735540254109,-1057.0,0.00016204,2]
[347168470,1735540254119,-254.25997644,0.00016208,2]
[347168471,1735540254128,-150.0,0.00016211,2]
[347168472,1735540254139,-2595.76538402,0.00016214,2]
[347168473,1735540254148,-150.0,0.00016217,2]
[347168474,1735540254158,-150.0,0.00016221,2]
[347168475,1735540254167,-254.25997644,0.00016225,2]
[347168476,1735540254177,-150.0,0.00016232,2]
[347168477,1735540254187,-150.0,0.00016237,2]
[347168478,1735540254196,-150.0,0.00016238,2]
[347168479,1735540254206,-150.0,0.00016238,2]
[347168480,1735540254216,-150.0,0.00016239,2]
[347168481,1735540254226,-254.25997644,0.00016241,2]
[347168482,1735540254235,-150.0,0.00016247,2]
[347168483,1735540254245,-261.5453016,0.00016251,2]
[347168484,1735540254255,-984.15,0.00016253,2]
[347168485,1735540254265,-150.0,0.00016253,2]
[347168486,1735540254274,-254.25997644,0.00016258,2]
[347168487,1735540254283,-194.0,0.00016266,2]
[347168488,1735540254292,-254.25997644,0.00016274,2]
[347168489,1735540254302,-249.98723707,0.00016274,2]
[347168490,1735540254312,-171.77055155,0.00016274,2]
[347168491,1735540254322,-225.72137851,0.00016274,2]
[347168492,1735540254332,-219.31500054,0.00016274,2]
[347168493,1735540254341,-237.18291264,0.00016274,2]
[347168494,1735540254351,-276.83591333,0.00016274,2]
[347168495,1735540254360,-276.4064148,0.00016274,2]
[347168496,1735540254369,-81418.98472279,0.0001628,2]
[347168497,1735540254552,-5571.83469391,0.0001628,2]
[347168498,1735540254564,-2859.20827104,0.0001628,2]
[347168499,1735540254576,-8374.66302034,0.0001628,2]
[347168500,1735540254593,-210.21922171,0.00015536,2]
[347168501,1735540254603,-193071.39896726,0.0001628,2]
[347168502,1735540254613,-210.0,0.0001628,3]
[347168503,1735540254622,-210.0,0.0001628,4]
[347168504,1735540254631,-210.0,0.0001628,7]
[347168505,1735540254641,-210.0,0.0001628,3]
[347168506,1735540254650,-669.06283055,0.0001628,2]
[347168507,1735540254659,-2484.0867024,0.00016289,2]
[347168508,1735540254669,-207.0,0.000163,2]
[347168509,1735540254679,-1000.0,0.000163,2]
[347168510,1735540254688,-362.0,0.0001631,2]
[347168511,1735540254697,-207.0,0.0001631,2]
[347168512,1735540254707,-209.0,0.0001631,2]
[347168513,1735540254716,-150.255,0.00016311,2]
[347168514,1735540254726,-150.0,0.00016318,2]
[347168515,1735540254736,-150.0,0.00016343,2]
[347168516,1735540254745,-1500.0,0.00016348,2]
[347168517,1735540254755,-168.21,0.00016349,2]
[347168518,1735540254765,-500.0,0.00016357,2]
[347168519,1735540254775,-500.0,0.00016357,2]
[347168520,1735540254784,-500.0,0.00016357,2]
[347168521,1735540254796,-8294.09,0.00016357,2]
[347168522,1735540254805,-500.0,0.00016357,2]
[347168523,1735540254815,-1115.87,0.00016357,2]
[347168524,1735540254825,-1631.27,0.00016357,2]
[347168525,1735540254834,-718.01,0.00016357,2]
[347168526,1735540254843,-746.82,0.00016357,2]
[347168527,1735540254852,-1700.04,0.00016357,2]
[347168528,1735540254862,-3316.1,0.00016357,2]
[347168529,1735540254871,-1890.23,0.00016358,2]
[347168530,1735540254880,-1329.52,0.00016358,2]
[347168531,1735540254890,-1541.18,0.00016358,2]
[347168532,1735540254899,-1758.7,0.00016358,2]
[347168533,1735540254910,-443.77,0.00016358,2]
[347168534,1735540254919,-770.87,0.00016358,2]